[Event "GER-ch Youth-U10 2022"]
[Site "Willingen"]
[Date "2022.06.08"]
[Round "7.6"]
[White "Li, Yunqi"]
[Black "Rohatgi, Kushagra"]
[Result "1-0"]
[ECO "B28"]
[WhiteElo "1312"]
[BlackElo "1222"]
[Annotator "NA RC COMBH"]
[PlyCount "103"]
[EventDate "2022.06.05"]
[EventType "swiss"]
[EventRounds "11"]
[EventCountry "GER"]
[SourceTitle "playchess.com"]
[Source "ChessBase"]
[SourceQuality "1"]
[TimeControl "40/4500+30:900+30"]

1. e4 {[%emt 0:00:02]} c5 {[%emt 0:00:07]} 2. Nf3 {[%emt 0:00:06]} a6 {[%emt 0:00:14]} 3. d4 {[%emt 0:00:08]} cxd4 {[%emt 0:00:08]} 4. Nxd4 {[%emt 0:00:05]} Nf6 {[%emt 0:00:11]} 5. Nc3 {[%emt 0:00:08]} e5 {[%emt 0:00:13]} 6. Nb3 {[%emt 0:00:41]} Bb4 {[%emt 0:00:16]} 7. Bc4 {[%emt 0:07:19]} Bxc3+ {[%emt 0:06:18]} 8. bxc3 {[%emt 0:01:12]} Qc7 {[%emt 0:06:04]} 9. Qd3 {[%emt 0:01:10]} O-O {[%emt 0:06:04]} 10. a4 {[%emt 0:03:25]} h6 {[%emt 0:05:41]} 11. Ba3 {[%emt 0:02:56]} Re8 {[%emt 0:04:36]} 12. O-O {[%emt 0:01:58]} Nc6 {[%emt 0:07:59]} 13. Rae1 {[%emt 0:03:16]} b6 {[%emt 0:04:28]} 14. Bd6 {[%emt 0:00:26]} Qd8 {[%emt 0:01:16]} 15. f4 {[%emt 0:07:12]} exf4 {[%emt 0:10:45]} 16. e5 {[%emt 0:00:46]} Ng4 {[%emt 0:05:12]} 17. Qf5 {[%emt 0:04:14]} Ngxe5 {[%emt 0:08:26]} 18. Bd5 {[%emt 0:12:36]} Qf6 {[%emt 0:02:33]} 19. Qxf6 {[%emt 0:00:14]} gxf6 {[%emt 0:00:09]} 20. a5 {[%emt 0:06:41]} bxa5 {[%emt 0:05:56]} 21. Nxa5 {[%emt 0:00:50]} Ra7 {[%emt 0:01:02]} 22. Nxc6 {[%emt 0:03:33]} dxc6 {[%emt 0:00:30]} 23. Bxc6 {[%emt 0:00:15]} Re6 {[%emt 0:00:41]} 24. Bxe5 {[%emt 0:00:23]} fxe5 {[%emt 0:00:26]} 25. Bd5 {[%emt 0:00:15]} Ree7 {[%emt 0:00:35]} 26. c4 {[%emt 0:01:12]} Bb7 {[%emt 0:00:42]} 27. Rxf4 {[%emt 0:00:43]} Bxd5 {[%emt 0:00:32]} 28. Rg4+ {[%emt 0:00:06]} Kh7 {[%emt 0:00:33]} 29. cxd5 {[%emt 0:00:03]} Rad7 {[%emt 0:00:16]} 30. c4 {[%emt 0:00:25]} Rd6 {[%emt 0:00:32]} 31. Rge4 {[%emt 0:08:13]} f6 {[%emt 0:01:36]} 32. Rc1 {[%emt 0:01:28]} f5 {[%emt 0:00:22]} 33. Ree1 {[%emt 0:00:07]} e4 {[%emt 0:00:14]} 34. g3 {[%emt 0:01:51]} Kg7 {[%emt 0:00:21]} 35. Kf2 {[%emt 0:00:27]} Kf7 {[%emt 0:01:04]} 36. Ke3 {[%emt 0:01:20]} Ke8 {[%emt 0:00:31]} 37. Kd4 {[%emt 0:00:27]} Red7 {[%emt 0:01:58]} 38. Rf1 {[%emt 0:00:29]} Rf7 {[%emt 0:01:08]} 39. c5 {[%emt 0:00:14]} Rd8 {[%emt 0:00:43]} 40. d6 {[%emt 0:00:41]} Rc8 {[%emt 0:00:53]} 41. Kd5 {[%emt 0:16:20]} Kd8 {[%emt 0:15:41]} 42. Ke6 {[%emt 0:02:56]} Rf8 {[%emt 0:00:21]} 43. c6 {[%emt 0:02:12]} Re8+ {[%emt 0:00:19]} 44. Kd5 {[%emt 0:00:47]} e3 {[%emt 0:00:36]} 45. d7 {[%emt 0:00:09]} e2 {[%emt 0:00:29]} 46. dxe8=Q+ {[%emt 0:00:39]} Kxe8 {[%emt 0:00:14]} 47. Rfe1 {[%emt 0:00:59]} Kd8 {[%emt 0:00:45]} 48. Kd6 {[%emt 0:00:03]} a5 {[%emt 0:00:10]} 49. Rxe2 {[%emt 0:00:11]} Rc7 {[%emt 0:00:43]} 50. Rce1 {[%emt 0:00:16]} Rxc6+ {[%emt 0:00:44]} 51. Kxc6 {[%emt 0:00:10]} a4 {[%emt 0:01:11]} 52. Re8# {[%emt 0:00:06]} 1-0

[Event "GER-ch Youth-U10 2022"]
[Site "Willingen"]
[Date "2022.06.08"]
[Round "7.7"]
[White "Junge, Mattheo Gabriel"]
[Black "Fischermann, Simon"]
[Result "0-1"]
[ECO "C56"]
[WhiteElo "1132"]
[BlackElo "1344"]
[Annotator "NA RC COMBH"]
[PlyCount "86"]
[EventDate "2022.06.05"]
[EventType "swiss"]
[EventRounds "11"]
[EventCountry "GER"]
[SourceTitle "playchess.com"]
[Source "ChessBase"]
[SourceQuality "1"]
[TimeControl "40/4500+30:900+30"]

1. e4 {[%emt 0:00:06]} e5 {[%emt 0:00:04]} 2. Nf3 {[%emt 0:00:08]} Nc6 {[%emt 0:00:07]} 3. Bc4 {[%emt 0:00:15]} Bc5 {[%emt 0:00:06]} 4. c3 {[%emt 0:00:31]} Nf6 {[%emt 0:00:10]} 5. d4 {[%emt 0:00:47]} exd4 {[%emt 0:00:06]} 6. O-O {[%emt 0:00:41]} Nxe4 {[%emt 0:00:07]} 7. cxd4 {[%emt 0:00:18]} d5 {[%emt 0:00:09]} 8. dxc5 {[%emt 0:00:21]} dxc4 {[%emt 0:00:07]} 9. Qe2 {[%emt 0:00:27]} Qd3 {[%emt 0:00:08]} 10. Re1 {[%emt 0:00:47]} f5 {[%emt 0:02:05]} 11. Nbd2 {[%emt 0:01:15]} O-O {[%emt 0:01:06]} 12. Nxe4 {[%emt 0:01:29]} fxe4 {[%emt 0:00:09]} 13. Qxe4 {[%emt 0:00:21]} Bf5 {[%emt 0:00:09]} 14. Qh4 {[%emt 0:00:46]} c3 {[%emt 0:00:51]} 15. bxc3 {[%emt 0:09:24]} Qxc3 {[%emt 0:00:13]} 16. Be3 {[%emt 0:01:31]} Rae8 {[%emt 0:01:02]} 17. Rac1 {[%emt 0:04:09]} Qa3 {[%emt 0:00:42]} 18. Qg3 {[%emt 0:02:39]} Rf7 {[%emt 0:00:48]} 19. Bh6 {[%emt 0:01:50]} Rd8 {[%emt 0:17:17]} 20. Re2 {[%emt 0:24:33]} Nd4 {[%emt 0:28:57]} 21. Ree1 {[%emt 0:11:35]} Nxf3+ {[%emt 0:00:51]} 22. gxf3 {[%emt 0:01:21]} Bg6 {[%emt 0:05:10]} 23. Bf4 {[%emt 0:02:41]} Rdf8 {[%emt 0:00:58]} 24. Bxc7 {[%emt 0:03:25]} Rxf3 {[%emt 0:00:45]} 25. Qg2 {[%emt 0:02:40]} Rxf2 {[%emt 0:02:07]} 26. Qxf2 {[%emt 0:00:31]} Rxf2 {[%emt 0:00:13]} 27. Kxf2 {[%emt 0:00:13]} Be4 {[%emt 0:00:53]} 28. Rxe4 {[%emt 0:03:14]} Qxc1 {[%emt 0:00:11]} 29. Bd6 {[%emt 0:00:29]} b6 {[%emt 0:01:37]} 30. Rf4 {[%emt 0:01:51]} h6 {[%emt 0:00:27]} 31. Kg3 {[%emt 0:04:15]} bxc5 {[%emt 0:00:51]} 32. h4 {[%emt 0:01:43]} c4 {[%emt 0:00:19]} 33. h5 {[%emt 0:00:51]} c3 {[%emt 0:00:16]} 34. Rf8+ {[%emt 0:00:13]} Kh7 {[%emt 0:00:10]} 35. Be5 {[%emt 0:00:27]} c2 {[%emt 0:00:52]} 36. Rf7 {[%emt 0:00:07]} Qe3+ {[%emt 0:00:07]} 37. Kg4 {[%emt 0:00:16]} Qxe5 {[%emt 0:00:26]} 38. a4 {[%emt 0:00:23]} Qe6+ {[%emt 0:00:09]} 39. Rf5 {[%emt 0:00:10]} c1=Q {[%emt 0:00:20]} 40. a5 {[%emt 0:00:16]} Qg5+ {[%emt 0:00:11]} 41. Kh3 {[%emt 0:15:11]} Qexf5+ {[%emt 0:15:25]} 42. Kh2 {[%emt 0:00:06]} Qf2+ {[%emt 0:00:25]} 43. Kh3 {[%emt 0:00:08]} Qxh5# {[%emt 0:00:14]} 0-1

[Event "GER-ch Youth-U10 2022"]
[Site "Willingen"]
[Date "2022.06.08"]
[Round "7.8"]
[White "Stehning, Toni"]
[Black "Rodriguez Klasen, Ennio"]
[Result "1/2-1/2"]
[ECO "B02"]
[WhiteElo "1097"]
[BlackElo "1315"]
[Annotator "NA RC COMBH"]
[PlyCount "107"]
[EventDate "2022.06.05"]
[EventType "swiss"]
[EventRounds "11"]
[EventCountry "GER"]
[SourceTitle "playchess.com"]
[Source "ChessBase"]
[SourceQuality "1"]
[TimeControl "40/4500+30:900+30"]

1. e4 {[%emt 0:00:12]} Nf6 {[%emt 0:00:17]} 2. Nc3 {[%emt 0:00:17]} d5 {[%emt 0:00:03]} 3. e5 {[%emt 0:00:13]} d4 {[%emt 0:00:11]} 4. exf6 {[%emt 0:00:15]} dxc3 {[%emt 0:00:01]} 5. fxg7 {[%emt 0:00:14]} cxd2+ {[%emt 0:00:15]} 6. Qxd2 {[%emt 0:00:13]} Qxd2+ {[%emt 0:00:08]} 7. Bxd2 {[%emt 0:00:05]} Bxg7 {[%emt 0:00:08]} 8. O-O-O {[%emt 0:00:36]} Nc6 {[%emt 0:02:18]} 9. Bb5 {[%emt 0:00:56]} Bd7 {[%emt 0:00:34]} 10. Nf3 {[%emt 0:01:06]} O-O-O {[%emt 0:00:54]} 11. Ng5 {[%emt 0:04:24]} Ne5 {[%emt 0:17:55]} 12. Bxd7+ {[%emt 0:02:37]} Rxd7 {[%emt 0:01:52]} 13. Bc3 {[%emt 0:07:15]} Rg8 {[%emt 0:15:35]} 14. Rxd7 {[%emt 0:27:50]} Kxd7 {[%emt 0:02:43]} 15. Bxe5 {[%emt 0:03:03]} Bxe5 {[%emt 0:00:27]} 16. Nxf7 {[%emt 0:01:19]} Bf4+ {[%emt 0:00:24]} 17. Kd1 {[%emt 0:00:25]} Rxg2 {[%emt 0:01:05]} 18. Ke2 {[%emt 0:00:26]} Rg7 {[%emt 0:01:11]} 19. Rd1+ {[%emt 0:01:10]} Bd6 {[%emt 0:07:42]} 20. Nxd6 {[%emt 0:01:10]} cxd6 {[%emt 0:00:35]} 21. Rd3 {[%emt 0:00:27]} e5 {[%emt 0:01:00]} 22. Rh3 {[%emt 0:01:15]} Rf7 {[%emt 0:08:12]} 23. Rc3 {[%emt 0:04:54]} d5 {[%emt 0:04:11]} 24. Rd3 {[%emt 0:05:44]} Kd6 {[%emt 0:03:33]} 25. Rh3 {[%emt 0:01:16]} b6 {[%emt 0:04:43]} 26. Rf3 {[%emt 0:02:55]} Rxf3 {[%emt 0:01:42]} 27. Kxf3 {[%emt 0:00:33]} h5 {[%emt 0:01:54]} 28. Kg3 {[%emt 0:05:26]} d4 {[%emt 0:02:37]} 29. f3 {[%emt 0:00:52]} Ke6 {[%emt 0:01:31]} 30. Kh4 {[%emt 0:00:27]} Kf5 {[%emt 0:00:10]} 31. Kxh5 {[%emt 0:00:22]} Kf4 {[%emt 0:00:18]} 32. h4 {[%emt 0:00:17]} Kxf3 {[%emt 0:00:08]} 33. Kg5 {[%emt 0:00:39]} e4 {[%emt 0:00:05]} 34. h5 {[%emt 0:00:03]} e3 {[%emt 0:00:07]} 35. h6 {[%emt 0:00:05]} e2 {[%emt 0:00:05]} 36. h7 {[%emt 0:00:07]} e1=Q {[%emt 0:00:06]} 37. h8=Q {[%emt 0:00:06]} Qg3+ {[%emt 0:03:15]} 38. Kf5 {[%emt 0:01:36]} Qf4+ {[%emt 0:01:32]} 39. Ke6 {[%emt 0:00:26]} Qe4+ {[%emt 0:01:55]} 40. Kd6 {[%emt 0:00:20]} Qf4+ {[%emt 0:02:44]} 41. Kc6 {[%emt 0:15:27]} Ke3 {[%emt 0:09:00]} 42. Kb5 {[%emt 0:00:00]} Qf5+ {[%emt 0:01:27]} 43. Ka6 {[%emt 0:00:00]} Qa5+ {[%emt 0:01:13]} 44. Kb7 {[%emt 0:00:00]} Qd5+ {[%emt 0:00:29]} 45. Kxa7 {[%emt 0:00:00]} Qxa2+ {[%emt 0:00:08]} 46. Kxb6 {[%emt 0:00:00]} Qxb2+ {[%emt 0:00:11]} 47. Ka5 {[%emt 0:00:00]} Qxc2 {[%emt 0:01:08]} 48. Qe5+ {[%emt 0:00:00]} Kd3 {[%emt 0:00:42]} 49. Qb5+ {[%emt 0:00:00]} Kd2 {[%emt 0:03:36]} 50. Qg5+ {[%emt 0:00:00]} Kc3 {[%emt 0:01:27]} 51. Qc5+ {[%emt 0:00:00]} Kd3 {[%emt 0:00:56]} 52. Qb5+ {[%emt 0:00:00]} Qc4 {[%emt 0:00:31]} 53. Qb1+ {[%emt 0:00:00]} Ke3 {[%emt 0:00:39]} 54. Qg1+ {[%emt 0:00:00]} 1/2-1/2

[Event "GER-ch Youth-U10 2022"]
[Site "Willingen"]
[Date "2022.06.08"]
[Round "7.9"]
[White "Belin, Anton"]
[Black "Bundan, Edward"]
[Result "0-1"]
[ECO "A45"]
[WhiteElo "1213"]
[BlackElo "1240"]
[Annotator "NA RC COMBH"]
[PlyCount "138"]
[EventDate "2022.06.05"]
[EventType "swiss"]
[EventRounds "11"]
[EventCountry "GER"]
[SourceTitle "playchess.com"]
[Source "ChessBase"]
[SourceQuality "1"]
[TimeControl "40/4500+30:900+30"]

1. d4 {[%emt 0:00:04]} Nf6 {[%emt 0:00:15]} 2. Bg5 {[%emt 0:00:07]} e6 {[%emt 0:00:25]} 3. e4 {[%emt 0:00:06]} h6 {[%emt 0:00:36]} 4. Bxf6 {[%emt 0:00:05]} Qxf6 {[%emt 0:00:09]} 5. Nc3 {[%emt 0:00:14]} Bb4 {[%emt 0:00:50]} 6. Nf3 {[%emt 0:00:27]} O-O {[%emt 0:00:39]} 7. Bd3 {[%emt 0:00:07]} d5 {[%emt 0:00:43]} 8. e5 {[%emt 0:00:05]} Qe7 {[%emt 0:00:36]} 9. O-O {[%emt 0:00:40]} c5 {[%emt 0:01:13]} 10. Ne2 {[%emt 0:00:46]} c4 {[%emt 0:00:33]} 11. c3 {[%emt 0:00:30]} cxd3 {[%emt 0:00:18]} 12. Qxd3 {[%emt 0:00:08]} Ba5 {[%emt 0:00:23]} 13. b4 {[%emt 0:00:12]} Bb6 {[%emt 0:00:35]} 14. a4 {[%emt 0:00:15]} a5 {[%emt 0:00:34]} 15. b5 {[%emt 0:00:11]} Rd8 {[%emt 0:02:32]} 16. Qe3 {[%emt 0:00:09]} Nd7 {[%emt 0:00:43]} 17. h3 {[%emt 0:00:25]} Nf8 {[%emt 0:00:26]} 18. Rfb1 {[%emt 0:01:29]} Ng6 {[%emt 0:00:58]} 19. g3 {[%emt 0:02:04]} Bd7 {[%emt 0:00:35]} 20. h4 {[%emt 0:00:35]} Rac8 {[%emt 0:01:27]} 21. h5 {[%emt 0:00:11]} Nf8 {[%emt 0:00:28]} 22. Nf4 {[%emt 0:03:25]} Nh7 {[%emt 0:00:56]} 23. Nh3 {[%emt 0:02:23]} Be8 {[%emt 0:00:45]} 24. Re1 {[%emt 0:00:41]} Rc7 {[%emt 0:00:38]} 25. Qd2 {[%emt 0:17:26]} Rdc8 {[%emt 0:01:01]} 26. Re3 {[%emt 0:00:11]} Rc4 {[%emt 0:01:20]} 27. Nf4 {[%emt 0:00:34]} Ng5 {[%emt 0:00:45]} 28. Nxg5 {[%emt 0:03:42]} Qxg5 {[%emt 0:00:38]} 29. Kg2 {[%emt 0:04:53]} Qe7 {[%emt 0:07:29]} 30. Ne2 {[%emt 0:01:08]} Bd8 {[%emt 0:01:15]} 31. Nf4 {[%emt 0:02:16]} Qc7 {[%emt 0:01:17]} 32. Ne2 {[%emt 0:00:38]} Qb6 {[%emt 0:00:42]} 33. Nf4 {[%emt 0:00:43]} Bg5 {[%emt 0:00:28]} 34. Rf3 {[%emt 0:00:37]} Qc7 {[%emt 0:01:44]} 35. Ra3 {[%emt 0:01:26]} Bxf4 {[%emt 0:01:15]} 36. Qxf4 {[%emt 0:00:30]} Qe7 {[%emt 0:00:24]} 37. Rb3 {[%emt 0:00:08]} Rxa4 {[%emt 0:00:19]} 38. b6 {[%emt 0:01:24]} Qg5 {[%emt 0:01:15]} 39. Qxg5 {[%emt 0:00:22]} hxg5 {[%emt 0:00:08]} 40. g4 {[%emt 0:00:05]} Rcc4 {[%emt 0:00:34]} 41. Rd3 {[%emt 0:16:12]} Ra2 {[%emt 0:15:17]} 42. Kf3 {[%emt 0:00:08]} a4 {[%emt 0:00:11]} 43. Rb1 {[%emt 0:00:05]} a3 {[%emt 0:00:07]} 44. Rbd1 {[%emt 0:00:08]} Rc2 {[%emt 0:00:10]} 45. Ra1 {[%emt 0:00:13]} R2xc3 {[%emt 0:00:16]} 46. Rxa3 {[%emt 0:00:04]} Rxd3+ {[%emt 0:00:58]} 47. Rxd3 {[%emt 0:00:08]} Rb4 {[%emt 0:00:16]} 48. Ke3 {[%emt 0:00:28]} Rxb6 {[%emt 0:00:07]} 49. f3 {[%emt 0:00:06]} Rb2 {[%emt 0:00:12]} 50. Rc3 {[%emt 0:00:10]} Bc6 {[%emt 0:00:10]} 51. Kd3 {[%emt 0:00:06]} Bb5+ {[%emt 0:00:21]} 52. Rc4 {[%emt 0:00:29]} Bxc4+ {[%emt 0:00:24]} 53. Kc3 {[%emt 0:00:07]} Rb3+ {[%emt 0:00:03]} 54. Kc2 {[%emt 0:00:06]} Rxf3 {[%emt 0:00:04]} 55. Kd2 {[%emt 0:00:06]} Rg3 {[%emt 0:00:09]} 56. Kc2 {[%emt 0:00:05]} Rxg4 {[%emt 0:00:05]} 57. Kc3 {[%emt 0:00:05]} Rh4 {[%emt 0:00:09]} 58. Kb4 {[%emt 0:00:05]} Rxd4 {[%emt 0:00:18]} 59. Kc3 {[%emt 0:00:05]} Rd3+ {[%emt 0:00:10]} 60. Kc2 {[%emt 0:00:06]} Rh3 {[%emt 0:00:13]} 61. Kd2 {[%emt 0:00:04]} Rxh5 {[%emt 0:00:10]} 62. Ke3 {[%emt 0:00:12]} b5 {[%emt 0:00:42]} 63. Kd4 {[%emt 0:00:03]} b4 {[%emt 0:00:06]} 64. Ke3 {[%emt 0:00:07]} b3 {[%emt 0:00:14]} 65. Kd2 {[%emt 0:00:04]} b2 {[%emt 0:00:07]} 66. Kc2 {[%emt 0:00:04]} Rh2+ {[%emt 0:00:08]} 67. Kb1 {[%emt 0:00:07]} Bd3+ {[%emt 0:00:06]} 68. Ka2 {[%emt 0:00:06]} b1=Q+ {[%emt 0:00:10]} 69. Ka3 {[%emt 0:00:06]} Ra2# {[%emt 0:00:09]} 0-1

[Event "GER-ch Youth-U10 2022"]
[Site "Willingen"]
[Date "2022.06.08"]
[Round "7.10"]
[White "Sheng, Ming"]
[Black "Fischer, Quirin"]
[Result "0-1"]
[ECO "B34"]
[WhiteElo "1258"]
[BlackElo "1195"]
[Annotator "NA RC COMBH"]
[PlyCount "54"]
[EventDate "2022.06.05"]
[EventType "swiss"]
[EventRounds "11"]
[EventCountry "GER"]
[SourceTitle "playchess.com"]
[Source "ChessBase"]
[SourceQuality "1"]
[TimeControl "40/4500+30:900+30"]

1. e4 {[%emt 0:00:01]} c5 {[%emt 0:00:05]} 2. Nf3 {[%emt 0:00:04]} Nc6 {[%emt 0:00:04]} 3. d4 {[%emt 0:00:12]} cxd4 {[%emt 0:00:04]} 4. Nxd4 {[%emt 0:00:20]} g6 {[%emt 0:00:06]} 5. Nc3 {[%emt 0:00:10]} Bg7 {[%emt 0:00:06]} 6. Be3 {[%emt 0:00:09]} Nf6 {[%emt 0:00:04]} 7. Nxc6 {[%emt 0:00:31]} bxc6 {[%emt 0:00:11]} 8. e5 {[%emt 0:00:07]} Nd5 {[%emt 0:00:07]} 9. Nxd5 {[%emt 0:00:04]} cxd5 {[%emt 0:00:07]} 10. Qxd5 {[%emt 0:00:05]} Rb8 {[%emt 0:00:32]} 11. Bxa7 {[%emt 0:00:30]} Rxb2 {[%emt 0:01:19]} 12. Bd4 {[%emt 0:00:28]} Rb4 {[%emt 0:01:55]} 13. Bc3 {[%emt 0:04:59]} Bb7 {[%emt 0:00:33]} 14. Qc5 {[%emt 0:02:14]} Re4+ {[%emt 0:01:09]} 15. Kd1 {[%emt 0:03:38]} O-O {[%emt 0:01:00]} 16. Ba5 {[%emt 0:03:40]} Qa8 {[%emt 0:00:34]} 17. Bc3 {[%emt 0:01:13]} d6 {[%emt 0:00:14]} 18. Qb6 {[%emt 0:07:07]} Bxe5 {[%emt 0:00:54]} 19. Bxe5 {[%emt 0:00:35]} Rxe5 {[%emt 0:00:11]} 20. f3 {[%emt 0:01:47]} Bxf3+ {[%emt 0:00:22]} 21. Kc1 {[%emt 0:01:47]} Qa3+ {[%emt 0:00:42]} 22. Kd2 {[%emt 0:01:43]} Rd5+ {[%emt 0:00:24]} 23. Ke1 {[%emt 0:03:12]} Qc3+ {[%emt 0:00:18]} 24. Kf2 {[%emt 0:00:24]} Rd2+ {[%emt 0:00:21]} 25. Kg1 {[%emt 0:00:35]} Qxa1 {[%emt 0:00:45]} 26. gxf3 {[%emt 0:01:45]} Kg7 {[%emt 0:01:06]} 27. Qe3 {[%emt 0:00:44]} Rxc2 {[%emt 0:20:02]} 0-1

[Event "GER-ch Youth-U10 2022"]
[Site "Willingen"]
[Date "2022.06.08"]
[Round "7.11"]
[White "Peglau, Paul David"]
[Black "Teng, David"]
[Result "1/2-1/2"]
[ECO "D37"]
[WhiteElo "1623"]
[BlackElo "1423"]
[Annotator "NA RC COMBH"]
[PlyCount "83"]
[EventDate "2022.06.05"]
[EventType "swiss"]
[EventRounds "11"]
[EventCountry "GER"]
[SourceTitle "playchess.com"]
[Source "ChessBase"]
[SourceQuality "1"]
[TimeControl "40/4500+30:900+30"]

1. d4 {[%emt 0:00:48]} d5 {[%emt 0:00:05]} 2. c4 {[%emt 0:00:06]} e6 {[%emt 0:00:04]} 3. Nc3 {[%emt 0:00:03]} Nf6 {[%emt 0:00:05]} 4. Nf3 {[%emt 0:00:04]} Be7 {[%emt 0:00:16]} 5. Bf4 {[%emt 0:00:09]} c5 {[%emt 0:00:34]} 6. cxd5 {[%emt 0:02:31]} Nxd5 {[%emt 0:00:41]} 7. Nxd5 {[%emt 0:01:40]} Qxd5 {[%emt 0:00:47]} 8. dxc5 {[%emt 0:02:30]} Qxc5 {[%emt 0:01:53]} 9. Rc1 {[%emt 0:02:52]} Qa5+ {[%emt 0:00:20]} 10. Qd2 {[%emt 0:03:44]} Qxd2+ {[%emt 0:03:35]} 11. Nxd2 {[%emt 0:04:11]} Nc6 {[%emt 0:01:04]} 12. e3 {[%emt 0:00:49]} O-O {[%emt 0:02:12]} 13. Be2 {[%emt 0:01:45]} e5 {[%emt 0:06:50]} 14. Bg3 {[%emt 0:02:01]} Be6 {[%emt 0:02:10]} 15. Bc4 {[%emt 0:04:35]} Bf5 {[%emt 0:05:16]} 16. O-O {[%emt 0:01:33]} e4 {[%emt 0:04:38]} 17. Bd5 {[%emt 0:05:37]} Rad8 {[%emt 0:04:31]} 18. Bxe4 {[%emt 0:03:23]} Rxd2 {[%emt 0:03:19]} 19. Bxf5 {[%emt 0:02:18]} Rxb2 {[%emt 0:03:35]} 20. Rb1 {[%emt 0:02:38]} Rxb1 {[%emt 0:05:55]} 21. Rxb1 {[%emt 0:01:09]} Rd8 {[%emt 0:04:28]} 22. Kf1 {[%emt 0:02:39]} b6 {[%emt 0:01:57]} 23. Ke2 {[%emt 0:03:00]} Bd6 {[%emt 0:02:52]} 24. Rd1 {[%emt 0:02:31]} Bxg3 {[%emt 0:01:43]} 25. Rxd8+ {[%emt 0:02:44]} Nxd8 {[%emt 0:00:46]} 26. hxg3 {[%emt 0:00:02]} Nc6 {[%emt 0:00:27]} 27. Kd2 {[%emt 0:01:00]} Kf8 {[%emt 0:01:10]} 28. Kc3 {[%emt 0:01:00]} g6 {[%emt 0:01:28]} 29. Be4 {[%emt 0:01:23]} Ne5 {[%emt 0:00:47]} 30. f3 {[%emt 0:08:07]} Ke7 {[%emt 0:01:22]} 31. Kb4 {[%emt 0:02:05]} Kd6 {[%emt 0:03:04]} 32. a4 {[%emt 0:02:40]} f5 {[%emt 0:02:01]} 33. Bc2 {[%emt 0:01:57]} Kc6 {[%emt 0:01:56]} 34. e4 {[%emt 0:01:45]} a5+ {[%emt 0:00:36]} 35. Kc3 {[%emt 0:00:30]} fxe4 {[%emt 0:00:25]} 36. Bxe4+ {[%emt 0:00:56]} Kc5 {[%emt 0:00:20]} 37. f4 {[%emt 0:03:10]} Nc4 {[%emt 0:00:30]} 38. g4 {[%emt 0:02:30]} Ne3 {[%emt 0:00:38]} 39. f5 {[%emt 0:02:07]} Nxg4 {[%emt 0:03:01]} 40. fxg6 {[%emt 0:01:34]} hxg6 {[%emt 0:00:12]} 41. Bxg6 {[%emt 0:15:13]} b5 {[%emt 0:16:30]} 42. axb5 {[%emt 0:00:31]} 1/2-1/2

[Event "GER-ch Youth-U10 2022"]
[Site "Willingen"]
[Date "2022.06.08"]
[Round "7.12"]
[White "Hellriegel, Hannes"]
[Black "Gersemann, Karl"]
[Result "0-1"]
[ECO "C50"]
[WhiteElo "1335"]
[BlackElo "1620"]
[Annotator "NA RC COMBH"]
[PlyCount "98"]
[EventDate "2022.06.05"]
[EventType "swiss"]
[EventRounds "11"]
[EventCountry "GER"]
[SourceTitle "playchess.com"]
[Source "ChessBase"]
[SourceQuality "1"]
[TimeControl "40/4500+30:900+30"]

1. e4 {[%emt 0:00:03]} e5 {[%emt 0:00:23]} 2. Nf3 {[%emt 0:00:08]} Nc6 {[%emt 0:00:16]} 3. Bc4 {[%emt 0:00:08]} Bc5 {[%emt 0:00:24]} 4. Nc3 {[%emt 0:00:12]} d6 {[%emt 0:01:06]} 5. h3 {[%emt 0:00:13]} Nf6 {[%emt 0:00:30]} 6. d3 {[%emt 0:00:18]} h6 {[%emt 0:00:30]} 7. O-O {[%emt 0:00:17]} Be6 {[%emt 0:00:19]} 8. Bb3 {[%emt 0:01:31]} Qd7 {[%emt 0:02:26]} 9. Bxe6 {[%emt 0:01:02]} fxe6 {[%emt 0:01:22]} 10. b3 {[%emt 0:01:35]} O-O {[%emt 0:01:33]} 11. Bb2 {[%emt 0:00:20]} a6 {[%emt 0:01:20]} 12. Na4 {[%emt 0:00:59]} Ba7 {[%emt 0:00:09]} 13. c4 {[%emt 0:00:29]} b5 {[%emt 0:01:48]} 14. Nc3 {[%emt 0:00:34]} b4 {[%emt 0:02:08]} 15. Ne2 {[%emt 0:00:29]} Nh5 {[%emt 0:02:01]} 16. d4 {[%emt 0:04:05]} exd4 {[%emt 0:00:21]} 17. Nfxd4 {[%emt 0:00:19]} Nxd4 {[%emt 0:07:28]} 18. Nxd4 {[%emt 0:00:25]} Nf4 {[%emt 0:09:53]} 19. Ne2 {[%emt 0:03:34]} Qf7 {[%emt 0:02:52]} 20. Nxf4 {[%emt 0:04:51]} Qxf4 {[%emt 0:00:13]} 21. Qe2 {[%emt 0:00:14]} e5 {[%emt 0:01:03]} 22. Bc1 {[%emt 0:03:09]} Qg3 {[%emt 0:00:59]} 23. Be3 {[%emt 0:05:22]} Bxe3 {[%emt 0:00:50]} 24. Qxe3 {[%emt 0:00:21]} Qxe3 {[%emt 0:00:51]} 25. fxe3 {[%emt 0:00:15]} Rxf1+ {[%emt 0:00:30]} 26. Rxf1 {[%emt 0:00:13]} a5 {[%emt 0:00:47]} 27. Rc1 {[%emt 0:00:42]} c5 {[%emt 0:00:29]} 28. Rd1 {[%emt 0:00:22]} Ra6 {[%emt 0:00:10]} 29. Rd5 {[%emt 0:00:13]} Kf7 {[%emt 0:00:26]} 30. Kf2 {[%emt 0:00:12]} Ke6 {[%emt 0:00:11]} 31. Kg3 {[%emt 0:00:37]} a4 {[%emt 0:00:15]} 32. Kh4 {[%emt 0:01:07]} axb3 {[%emt 0:00:40]} 33. axb3 {[%emt 0:00:10]} g6 {[%emt 0:00:32]} 34. g4 {[%emt 0:00:29]} Ra1 {[%emt 0:01:00]} 35. g5 {[%emt 0:00:43]} h5 {[%emt 0:00:16]} 36. Rd3 {[%emt 0:01:37]} Rc1 {[%emt 0:00:11]} 37. Kg3 {[%emt 0:10:32]} Rc3 {[%emt 0:00:11]} 38. Rd2 {[%emt 0:00:50]} Rxb3 {[%emt 0:00:14]} 39. Re2 {[%emt 0:00:29]} Rb1 {[%emt 0:00:21]} 40. h4 {[%emt 0:00:43]} Rc1 {[%emt 0:00:50]} 41. Rf2 {[%emt 0:15:34]} b3 {[%emt 0:15:59]} 42. Rf6+ {[%emt 0:00:10]} Ke7 {[%emt 0:00:14]} 43. Rxg6 {[%emt 0:00:15]} b2 {[%emt 0:00:18]} 44. Rh6 {[%emt 0:00:19]} b1=Q {[%emt 0:00:21]} 45. g6 {[%emt 0:00:09]} Rg1+ {[%emt 0:00:17]} 46. Kh2 {[%emt 0:00:20]} Qf1 {[%emt 0:00:36]} 47. Rh7+ {[%emt 0:00:16]} Ke6 {[%emt 0:00:19]} 48. Re7+ {[%emt 0:00:17]} Kxe7 {[%emt 0:00:14]} 49. g7 {[%emt 0:00:08]} Qg2# {[%emt 0:01:29]} 0-1